[Event "FIDE Women World Blitz 2021"]
[Site "Warsaw"]
[Date "2021.12.30"]
[Round "11.3"]
[White "Kosteniuk, Alexandra"]
[Black "Gunina, Valentina"]
[Result "0-1"]
[ECO "B11"]
[WhiteElo "2518"]
[BlackElo "2480"]
[Annotator "ChessBase"]
[PlyCount "108"]
[EventDate "2021.12.29"]
[EventType "swiss"]
[EventCountry "POL"]
[Tiebreak "Cut1 Buchholz"]
[SourceTitle "playchess.com"]
[Source "ChessBase"]
[SourceQuality "1"]
[TimeControl "180+2"]

1. e4 {[%emt 0:00:01]} c6 {[%emt 0:00:01]} 2. Nc3 {[%emt 0:00:01]} d5 {[%emt 0:
00:01]} 3. Nf3 {[%emt 0:00:01]} dxe4 {[%emt 0:00:01]} 4. Nxe4 {[%emt 0:00:01]}
Nf6 {[%emt 0:00:01]} 5. Qe2 {[%emt 0:00:01]} Nxe4 {[%emt 0:00:01]} 6. Qxe4 {
[%emt 0:00:00]} Nd7 {[%emt 0:00:02]} 7. d4 {[%emt 0:00:01]} Nf6 {[%emt 0:00:01]
} 8. Qf4 {[%emt 0:00:01]} Nd5 {[%emt 0:00:09]} 9. Qd2 {[%emt 0:00:01]} Bf5 {
[%emt 0:00:01]} 10. Bd3 {[%emt 0:00:02]} Bxd3 {[%emt 0:00:01]} 11. Qxd3 {
[%emt 0:00:01]} e6 {[%emt 0:00:01]} 12. O-O {[%emt 0:00:08]} Be7 {[%emt 0:00:
01]} 13. c4 {[%emt 0:00:01]} Nf6 {[%emt 0:00:01]} 14. Rd1 {[%emt 0:00:23]} O-O
{[%emt 0:00:03]} 15. Bf4 {[%emt 0:00:02]} Bd6 {[%emt 0:00:07]} 16. Bg5 {
[%emt 0:00:05]} h6 {[%emt 0:00:02]} 17. Bh4 {[%emt 0:00:04]} Be7 {[%emt 0:00:
04]} 18. Qb3 {[%emt 0:00:08]} Ne4 {[%emt 0:00:11]} 19. Bxe7 {[%emt 0:00:14]}
Qxe7 {[%emt 0:00:01]} 20. Re1 {[%emt 0:00:02]} Nf6 {[%emt 0:00:01]} 21. Rad1 {
[%emt 0:00:02]} Rfd8 {[%emt 0:00:04]} 22. Rd3 {[%emt 0:00:01]} Rd6 {[%emt 0:00:
06]} 23. h3 {[%emt 0:00:06]} Rad8 {[%emt 0:00:02]} 24. Red1 {[%emt 0:00:02]}
Qc7 {[%emt 0:00:08]} 25. Qa3 {[%emt 0:00:06]} a6 {[%emt 0:00:05]} 26. Qc5 {
[%emt 0:00:09]} Nd7 {[%emt 0:00:14]} 27. Qh5 {[%emt 0:00:03]} Nf8 {[%emt 0:00:
46]} 28. Ne5 {[%emt 0:00:17]} f6 {[%emt 0:00:05]} 29. Ng4 {[%emt 0:00:15]} R6d7
{[%emt 0:00:14]} 30. b3 {[%emt 0:00:27]} Qf4 {[%emt 0:00:03]} 31. Qc5 {[%emt 0:
00:09]} e5 {[%emt 0:00:08]} 32. d5 {[%emt 0:00:05]} Ne6 {[%emt 0:00:04]} 33.
Qe3 {[%emt 0:00:11]} Qxe3 {[%emt 0:00:14]} 34. Nxe3 {[%emt 0:00:13]} Nf4 {
[%emt 0:00:07]} 35. R3d2 {[%emt 0:00:05]} cxd5 {[%emt 0:00:01]} 36. cxd5 {
[%emt 0:00:04]} Kf7 {[%emt 0:00:05]} 37. h4 {[%emt 0:00:02]} e4 {[%emt 0:00:19]
} 38. g3 {[%emt 0:00:03]} Nd3 {[%emt 0:00:01]} 39. Rc2 {[%emt 0:00:03]} g6 {
[%emt 0:00:05]} 40. Rdd2 {[%emt 0:00:12]} Ne1 {[%emt 0:00:02]} 41. Kf1 {
[%emt 0:00:03]} Nxc2 {[%emt 0:00:01]} 42. Rxc2 {[%emt 0:00:00]} h5 {[%emt 0:00:
04]} 43. Rc5 {[%emt 0:00:02]} Ke7 {[%emt 0:00:03]} 44. b4 {[%emt 0:00:01]} Rd6
{[%emt 0:00:04]} 45. a4 {[%emt 0:00:02]} Rb6 {[%emt 0:00:04]} 46. Rc4 {[%emt 0:
00:02]} f5 {[%emt 0:00:02]} 47. a5 {[%emt 0:00:02]} Rb5 {[%emt 0:00:03]} 48.
Ke2 {[%emt 0:00:01]} Rd7 {[%emt 0:00:03]} 49. f3 {[%emt 0:00:04]} exf3+ {
[%emt 0:00:02]} 50. Kxf3 {[%emt 0:00:01]} Kd6 {[%emt 0:00:01]} 51. Kf4 {
[%emt 0:00:09]} Re7 {[%emt 0:00:01]} 52. Nc2 {[%emt 0:00:13]} Rxd5 {[%emt 0:00:
03]} 53. Kg5 {[%emt 0:00:02]} f4+ {[%emt 0:00:01]} 54. Kxf4 {[%emt 0:00:01]}
Rf5# {[%emt 0:00:00]} 0-1

[Event "FIDE Women World Blitz 2021"]
[Site "Warsaw"]
[Date "2021.12.30"]
[Round "11.3"]
[White "Szczotka, Klara"]
[Black "Antolak, Julia"]
[Result "0-1"]
[ECO "B81"]
[WhiteElo "1584"]
[BlackElo "2334"]
[Annotator "NA"]
[PlyCount "112"]
[EventDate "2021.12.29"]
[EventType "swiss"]
[EventCountry "POL"]
[Tiebreak "Cut1 Buchholz"]
[SourceTitle "playchess.com"]
[Source "ChessBase"]
[SourceQuality "1"]
[TimeControl "180+2"]

1. e4 {[%emt 0:00:01]} c5 {[%emt 0:00:00]} 2. Nf3 {[%emt 0:00:01]} e6 {[%emt 0:
00:01]} 3. d4 {[%emt 0:00:02]} cxd4 {[%emt 0:00:01]} 4. Nxd4 {[%emt 0:00:01]}
Nf6 {[%emt 0:00:01]} 5. Nc3 {[%emt 0:00:15]} d6 {[%emt 0:00:00]} 6. g4 {
[%emt 0:00:03]} h6 {[%emt 0:00:01]} 7. Rg1 {[%emt 0:00:07]} Nc6 {[%emt 0:00:01]
} 8. Be3 {[%emt 0:00:13]} d5 {[%emt 0:00:15]} 9. exd5 {[%emt 0:00:28]} Nxd5 {
[%emt 0:00:01]} 10. Nxd5 {[%emt 0:00:11]} Qxd5 {[%emt 0:00:02]} 11. Bg2 {
[%emt 0:00:02]} Qa5+ {[%emt 0:00:01]} 12. Qd2 {[%emt 0:00:05]} Qxd2+ {[%emt 0:
00:32]} 13. Kxd2 {[%emt 0:00:01]} Bd7 {[%emt 0:00:09]} 14. Rad1 {[%emt 0:00:02]
} Nxd4 {[%emt 0:00:14]} 15. Bxd4 {[%emt 0:00:01]} O-O-O {[%emt 0:00:01]} 16.
Kc1 {[%emt 0:00:02]} b6 {[%emt 0:00:14]} 17. Be4 {[%emt 0:00:03]} f6 {[%emt 0:
00:04]} 18. h3 {[%emt 0:00:05]} e5 {[%emt 0:00:03]} 19. Bc3 {[%emt 0:00:01]}
Bc5 {[%emt 0:00:02]} 20. Rg2 {[%emt 0:00:06]} Be6 {[%emt 0:00:07]} 21. a3 {
[%emt 0:00:12]} Kc7 {[%emt 0:00:10]} 22. b4 {[%emt 0:00:05]} Be7 {[%emt 0:00:
01]} 23. Rgg1 {[%emt 0:00:04]} g5 {[%emt 0:00:10]} 24. Kb2 {[%emt 0:00:03]} h5
{[%emt 0:00:32]} 25. f3 {[%emt 0:00:04]} hxg4 {[%emt 0:00:05]} 26. hxg4 {
[%emt 0:00:01]} Rh2 {[%emt 0:00:22]} 27. Rxd8 {[%emt 0:00:03]} Bxd8 {[%emt 0:
00:01]} 28. Rd1 {[%emt 0:00:13]} Be7 {[%emt 0:00:03]} 29. Rd2 {[%emt 0:00:02]}
Rh3 {[%emt 0:00:08]} 30. Rd1 {[%emt 0:00:17]} Bd7 {[%emt 0:00:07]} 31. Kb3 {
[%emt 0:00:24]} Bb5 {[%emt 0:00:01]} 32. Rd2 {[%emt 0:00:04]} Bc6 {[%emt 0:00:
08]} 33. Bxc6 {[%emt 0:00:09]} Kxc6 {[%emt 0:00:01]} 34. Rf2 {[%emt 0:00:01]}
Bd6 {[%emt 0:00:08]} 35. Kc4 {[%emt 0:00:02]} b5+ {[%emt 0:00:04]} 36. Kd3 {
[%emt 0:00:03]} Kd5 {[%emt 0:00:02]} 37. Bb2 {[%emt 0:00:21]} Bc7 {[%emt 0:00:
09]} 38. Rf1 {[%emt 0:00:07]} Bb6 {[%emt 0:00:02]} 39. Ke2 {[%emt 0:00:02]}
Rh2+ {[%emt 0:00:03]} 40. Kd3 {[%emt 0:00:02]} Rh3 {[%emt 0:00:00]} 41. Ke2 {
[%emt 0:00:01]} Kc4 {[%emt 0:00:01]} 42. Rc1 {[%emt 0:00:08]} Rh2+ {[%emt 0:00:
01]} 43. Ke1 {[%emt 0:00:04]} Rf2 {[%emt 0:00:02]} 44. c3 {[%emt 0:00:03]} Rxb2
{[%emt 0:00:02]} 45. Kf1 {[%emt 0:00:02]} Rf2+ {[%emt 0:00:02]} 46. Ke1 {
[%emt 0:00:02]} Rxf3 {[%emt 0:00:01]} 47. Ke2 {[%emt 0:00:01]} Rxc3 {[%emt 0:
00:01]} 48. Rd1 {[%emt 0:00:01]} Rc2+ {[%emt 0:00:02]} 49. Kf3 {[%emt 0:00:02]}
Rf2+ {[%emt 0:00:02]} 50. Kg3 {[%emt 0:00:01]} Ra2 {[%emt 0:00:01]} 51. Rd6 {
[%emt 0:00:02]} Rxa3+ {[%emt 0:00:02]} 52. Kg2 {[%emt 0:00:01]} e4 {[%emt 0:00:
02]} 53. Rxf6 {[%emt 0:00:02]} e3 {[%emt 0:00:01]} 54. Kf3 {[%emt 0:00:01]} Ra2
{[%emt 0:00:04]} 55. Re6 {[%emt 0:00:02]} Rf2+ {[%emt 0:00:01]} 56. Kg3 {
[%emt 0:00:02]} Rf4 {[%emt 0:00:03]} 0-1

[Event "FIDE Women World Blitz 2021"]
[Site "Warsaw"]
[Date "2021.12.30"]
[Round "11.4"]
[White "Kashlinskaya, Alina"]
[Black "Stefanova, Antoaneta"]
[Result "1-0"]
[ECO "D15"]
[WhiteElo "2482"]
[BlackElo "2475"]
[Annotator "ChessBase"]
[PlyCount "89"]
[EventDate "2021.12.29"]
[EventType "swiss"]
[EventCountry "POL"]
[Tiebreak "Cut1 Buchholz"]
[SourceTitle "playchess.com"]
[Source "ChessBase"]
[SourceQuality "1"]
[TimeControl "180+2"]

1. d4 {[%emt 0:00:01]} d5 {[%emt 0:00:00]} 2. c4 {[%emt 0:00:01]} c6 {[%emt 0:
00:01]} 3. Nf3 {[%emt 0:00:01]} Nf6 {[%emt 0:00:01]} 4. Nc3 {[%emt 0:00:01]} a6
{[%emt 0:00:00]} 5. c5 {[%emt 0:00:04]} Bf5 {[%emt 0:00:02]} 6. Qb3 {[%emt 0:
00:03]} Ra7 {[%emt 0:00:02]} 7. Nh4 {[%emt 0:00:11]} Be6 {[%emt 0:00:04]} 8. g3
{[%emt 0:00:12]} h6 {[%emt 0:00:15]} 9. Bg2 {[%emt 0:00:02]} g5 {[%emt 0:00:02]
} 10. Nf3 {[%emt 0:00:01]} Nbd7 {[%emt 0:00:03]} 11. Qc2 {[%emt 0:00:01]} Bg4 {
[%emt 0:00:04]} 12. h4 {[%emt 0:00:11]} gxh4 {[%emt 0:00:54]} 13. Rxh4 {
[%emt 0:00:07]} h5 {[%emt 0:00:02]} 14. Bf4 {[%emt 0:00:07]} b6 {[%emt 0:00:12]
} 15. cxb6 {[%emt 0:00:14]} Qxb6 {[%emt 0:00:08]} 16. Rc1 {[%emt 0:00:13]} e6 {
[%emt 0:00:40]} 17. Na4 {[%emt 0:00:11]} Bb4+ {[%emt 0:00:07]} 18. Kf1 {
[%emt 0:00:02]} Qb5 {[%emt 0:00:04]} 19. Qxc6 {[%emt 0:00:07]} O-O {[%emt 0:00:
15]} 20. a3 {[%emt 0:00:15]} Be7 {[%emt 0:00:08]} 21. Qc2 {[%emt 0:00:21]} Ne4
{[%emt 0:00:08]} 22. Rh1 {[%emt 0:00:01]} Bf5 {[%emt 0:00:10]} 23. Qd1 {
[%emt 0:00:10]} Ndf6 {[%emt 0:00:01]} 24. Ne5 {[%emt 0:00:06]} Rb7 {[%emt 0:00:
05]} 25. f3 {[%emt 0:00:13]} Nd6 {[%emt 0:00:01]} 26. Rc3 {[%emt 0:00:11]} Nc4
{[%emt 0:00:07]} 27. Nxc4 {[%emt 0:00:09]} dxc4 {[%emt 0:00:01]} 28. Be5 {
[%emt 0:00:01]} Bg6 {[%emt 0:00:01]} 29. g4 {[%emt 0:00:04]} Nd5 {[%emt 0:00:
05]} 30. gxh5 {[%emt 0:00:10]} Bh7 {[%emt 0:00:01]} 31. Rg1 {[%emt 0:00:04]} f6
{[%emt 0:00:02]} 32. Bh3+ {[%emt 0:00:09]} Kf7 {[%emt 0:00:01]} 33. Bh2 {
[%emt 0:00:08]} Nxc3 {[%emt 0:00:01]} 34. Nxc3 {[%emt 0:00:05]} Qxb2 {[%emt 0:
00:01]} 35. d5 {[%emt 0:00:08]} Qxc3 {[%emt 0:00:08]} 36. Bxe6+ {[%emt 0:00:01]
} Ke8 {[%emt 0:00:01]} 37. Qa4+ {[%emt 0:00:03]} Kd8 {[%emt 0:00:06]} 38. d6 {
[%emt 0:00:05]} Rb1+ {[%emt 0:00:03]} 39. Kg2 {[%emt 0:00:01]} Rxg1+ {[%emt 0:
00:02]} 40. Bxg1 {[%emt 0:00:01]} Rg8+ {[%emt 0:00:04]} 41. Bxg8 {[%emt 0:00:
04]} Bxg8 {[%emt 0:00:01]} 42. Bb6+ {[%emt 0:00:01]} Kc8 {[%emt 0:00:01]} 43.
Qc6+ {[%emt 0:00:01]} Kb8 {[%emt 0:00:01]} 44. Qc7+ {[%emt 0:00:00]} Ka8 {
[%emt 0:00:01]} 45. Qa7# {[%emt 0:00:01]} 1-0

[Event "FIDE Women World Blitz 2021"]
[Site "Warsaw"]
[Date "2021.12.30"]
[Round "11.4"]
[White "Smietanska, Wiktoria"]
[Black "Movsesian, Julia"]
[Result "1-0"]
[ECO "A27"]
[WhiteElo "1765"]
[BlackElo "2322"]
[Annotator "NA"]
[PlyCount "103"]
[EventDate "2021.12.29"]
[EventType "swiss"]
[EventCountry "POL"]
[Tiebreak "Cut1 Buchholz"]
[SourceTitle "playchess.com"]
[Source "ChessBase"]
[SourceQuality "1"]
[TimeControl "180+2"]

1. c4 {[%emt 0:00:01]} e5 {[%emt 0:00:01]} 2. Nc3 {[%emt 0:00:01]} Nc6 {
[%emt 0:00:00]} 3. Nf3 {[%emt 0:00:01]} Bc5 {[%emt 0:00:02]} 4. e3 {[%emt 0:00:
01]} d6 {[%emt 0:00:01]} 5. d4 {[%emt 0:00:01]} exd4 {[%emt 0:00:01]} 6. exd4 {
[%emt 0:00:01]} Bb6 {[%emt 0:00:01]} 7. d5 {[%emt 0:00:03]} Nce7 {[%emt 0:00:
07]} 8. Bd3 {[%emt 0:00:01]} Nf6 {[%emt 0:00:04]} 9. Qc2 {[%emt 0:00:05]} h6 {
[%emt 0:00:02]} 10. O-O {[%emt 0:00:02]} O-O {[%emt 0:00:01]} 11. h3 {[%emt 0:
00:02]} a6 {[%emt 0:00:00]} 12. b3 {[%emt 0:00:06]} c6 {[%emt 0:00:08]} 13.
dxc6 {[%emt 0:00:14]} bxc6 {[%emt 0:00:01]} 14. Ba3 {[%emt 0:00:04]} d5 {
[%emt 0:00:14]} 15. cxd5 {[%emt 0:00:08]} cxd5 {[%emt 0:00:06]} 16. Rfe1 {
[%emt 0:00:09]} Be6 {[%emt 0:00:01]} 17. Na4 {[%emt 0:00:03]} Rc8 {[%emt 0:00:
05]} 18. Qb2 {[%emt 0:00:09]} Bc7 {[%emt 0:00:28]} 19. Nc5 {[%emt 0:00:05]} Re8
{[%emt 0:00:57]} 20. Bxa6 {[%emt 0:00:24]} Rb8 {[%emt 0:00:03]} 21. Nxe6 fxe6 {
[%emt 0:00:01]} 22. Rxe6 {[%emt 0:00:35]} Nf5 {[%emt 0:00:07]} 23. Rxe8+ {
[%emt 0:00:12]} Qxe8 {[%emt 0:00:01]} 24. Bd3 {[%emt 0:00:05]} Ne4 {[%emt 0:00:
07]} 25. Re1 {[%emt 0:00:17]} Qc6 {[%emt 0:00:01]} 26. Bxe4 {[%emt 0:00:06]}
dxe4 {[%emt 0:00:00]} 27. Nd4 {[%emt 0:00:22]} Qf6 {[%emt 0:00:01]} 28. Nxf5 {
[%emt 0:00:13]} Qxf5 {[%emt 0:00:00]} 29. Qd4 {[%emt 0:00:12]} Bb6 {[%emt 0:00:
01]} 30. Qc4+ {[%emt 0:00:08]} Kh8 {[%emt 0:00:01]} 31. Re2 {[%emt 0:00:04]}
Rd8 {[%emt 0:00:01]} 32. Qxe4 {[%emt 0:00:05]} Qa5 {[%emt 0:00:36]} 33. Be7 {
[%emt 0:00:04]} Rc8 {[%emt 0:00:08]} 34. Bd6 {[%emt 0:00:02]} Qc3 {[%emt 0:00:
03]} 35. Be5 {[%emt 0:00:02]} Qc1+ {[%emt 0:00:04]} 36. Kh2 {[%emt 0:00:01]}
Qg5 {[%emt 0:00:00]} 37. Qg4 {[%emt 0:00:03]} Qxg4 {[%emt 0:00:10]} 38. hxg4 {
[%emt 0:00:01]} Bc5 {[%emt 0:00:00]} 39. f3 {[%emt 0:00:01]} Kh7 {[%emt 0:00:
02]} 40. a4 {[%emt 0:00:04]} Re8 {[%emt 0:00:00]} 41. f4 {[%emt 0:00:01]} g5 {
[%emt 0:00:02]} 42. g3 {[%emt 0:00:01]} gxf4 {[%emt 0:00:02]} 43. gxf4 {
[%emt 0:00:01]} Kg6 {[%emt 0:00:01]} 44. Rb2 {[%emt 0:00:03]} h5 {[%emt 0:00:
01]} 45. Kg3 {[%emt 0:00:02]} Bb4 {[%emt 0:00:04]} 46. Rc2 {[%emt 0:00:02]}
hxg4 {[%emt 0:00:01]} 47. Kxg4 {[%emt 0:00:01]} Rd8 {[%emt 0:00:02]} 48. Rc6+ {
[%emt 0:00:01]} Kf7 {[%emt 0:00:01]} 49. Kf5 {[%emt 0:00:01]} Rd1 {[%emt 0:00:
01]} 50. Rc7+ {[%emt 0:00:01]} Ke8 {[%emt 0:00:00]} 51. Ke6 {[%emt 0:00:02]}
Be7 {[%emt 0:00:02]} 52. Rxe7+ {[%emt 0:00:02]} 1-0

[Event "FIDE Women World Blitz 2021"]
[Site "Warsaw"]
[Date "2021.12.30"]
[Round "11.5"]
[White "Abdumalik, Zhansaya"]
[Black "Bivol, Alina"]
[Result "1-0"]
[ECO "C18"]
[WhiteElo "2507"]
[BlackElo "2377"]
[Annotator "ChessBase"]
[PlyCount "77"]
[EventDate "2021.12.29"]
[EventType "swiss"]
[EventCountry "POL"]
[Tiebreak "Cut1 Buchholz"]
[SourceTitle "playchess.com"]
[Source "ChessBase"]
[SourceQuality "1"]
[TimeControl "180+2"]

1. e4 {[%emt 0:00:02]} e6 {[%emt 0:00:07]} 2. d4 {[%emt 0:00:02]} d5 {[%emt 0:
00:01]} 3. Nc3 {[%emt 0:00:01]} Bb4 {[%emt 0:00:01]} 4. e5 {[%emt 0:00:01]} c5
{[%emt 0:00:01]} 5. a3 {[%emt 0:00:01]} Bxc3+ {[%emt 0:00:01]} 6. bxc3 {
[%emt 0:00:01]} Nc6 {[%emt 0:00:01]} 7. Nf3 {[%emt 0:00:15]} Qa5 {[%emt 0:00:
17]} 8. Bd2 {[%emt 0:00:15]} c4 {[%emt 0:00:04]} 9. h4 {[%emt 0:00:03]} Bd7 {
[%emt 0:00:01]} 10. h5 {[%emt 0:00:05]} O-O-O {[%emt 0:00:38]} 11. Ng5 {
[%emt 0:00:51]} Rf8 {[%emt 0:00:09]} 12. g3 {[%emt 0:00:02]} f6 {[%emt 0:00:05]
} 13. exf6 {[%emt 0:00:01]} gxf6 {[%emt 0:00:04]} 14. Nf3 {[%emt 0:00:05]} e5 {
[%emt 0:00:01]} 15. Bg2 {[%emt 0:00:02]} Nge7 {[%emt 0:00:16]} 16. a4 {[%emt 0:
00:17]} Rhg8 {[%emt 0:00:23]} 17. Qc1 {[%emt 0:00:01]} Nf5 {[%emt 0:00:09]} 18.
Qa3 {[%emt 0:00:13]} Qc7 {[%emt 0:00:38]} 19. dxe5 {[%emt 0:00:32]} fxe5 {
[%emt 0:00:03]} 20. O-O-O {[%emt 0:00:03]} d4 {[%emt 0:00:19]} 21. cxd4 {
[%emt 0:00:11]} Ncxd4 {[%emt 0:00:04]} 22. Rhe1 {[%emt 0:00:08]} Nxf3 {[%emt 0:
00:05]} 23. Bxf3 {[%emt 0:00:02]} Nd4 {[%emt 0:00:01]} 24. Bd5 {[%emt 0:00:02]}
Rh8 {[%emt 0:00:14]} 25. f4 {[%emt 0:00:02]} Bf5 {[%emt 0:00:01]} 26. Rxe5 {
[%emt 0:00:08]} Bxc2 {[%emt 0:00:02]} 27. Rde1 {[%emt 0:00:06]} Bd3 {[%emt 0:
00:00]} 28. Bc3 {[%emt 0:00:07]} Qb6 {[%emt 0:00:01]} 29. Qb2 {[%emt 0:00:06]}
Nb3+ {[%emt 0:00:01]} 30. Kd1 {[%emt 0:00:00]} Nc5 {[%emt 0:00:02]} 31. a5 {
[%emt 0:00:07]} Qxb2 32. Bxb2 {[%emt 0:00:01]} Rd8 {[%emt 0:00:02]} 33. Kd2 {
[%emt 0:00:03]} Nb3+ {[%emt 0:00:01]} 34. Kc3 {[%emt 0:00:00]} Nxa5 {[%emt 0:
00:01]} 35. Be6+ {[%emt 0:00:02]} Kb8 {[%emt 0:00:01]} 36. Rxa5 {[%emt 0:00:01]
} b6 {[%emt 0:00:02]} 37. Rae5 {[%emt 0:00:03]} Rhf8 {[%emt 0:00:00]} 38. Ba3 {
[%emt 0:00:01]} Rf6 {[%emt 0:00:01]} 39. Be7 {[%emt 0:00:02]} 1-0

[Event "FIDE Women World Blitz 2021"]
[Site "Warsaw"]
[Date "2021.12.30"]
[Round "11.5"]
[White "Nurgali, Nazerke"]
[Black "Gil Quilez, Sonia"]
[Result "0-1"]
[ECO "D66"]
[WhiteElo "2267"]
[BlackElo "2122"]
[Annotator "NA"]
[PlyCount "72"]
[EventDate "2021.12.29"]
[EventType "swiss"]
[EventCountry "POL"]
[Tiebreak "Cut1 Buchholz"]
[SourceTitle "playchess.com"]
[Source "ChessBase"]
[SourceQuality "1"]
[TimeControl "180+2"]

1. d4 {[%emt 0:09:32]} d5 2. Nf3 {[%emt 0:00:01]} Nf6 3. c4 {[%emt 0:00:02]} c6
{[%emt 0:00:01]} 4. Nc3 e6 5. Bg5 {[%emt 0:00:02]} Nbd7 {[%emt 0:00:06]} 6. e3
{[%emt 0:00:00]} Be7 {[%emt 0:00:06]} 7. Bd3 {[%emt 0:00:00]} dxc4 {[%emt 0:00:
02]} 8. Bxc4 {[%emt 0:00:00]} b5 {[%emt 0:00:00]} 9. Bd3 {[%emt 0:00:00]} a6 {
[%emt 0:00:01]} 10. O-O {[%emt 0:00:00]} O-O {[%emt 0:00:05]} 11. Rc1 {[%emt 0:
00:00]} c5 {[%emt 0:00:01]} 12. Bb1 {[%emt 0:00:00]} cxd4 {[%emt 0:00:09]} 13.
exd4 {[%emt 0:00:00]} Bb7 {[%emt 0:00:03]} 14. Qe2 {[%emt 0:00:00]} Re8 {
[%emt 0:00:08]} 15. Rfd1 {[%emt 0:00:00]} Nd5 {[%emt 0:00:18]} 16. Bxe7 {
[%emt 0:00:00]} Qxe7 {[%emt 0:00:02]} 17. Ne4 {[%emt 0:00:00]} h6 {[%emt 0:00:
12]} 18. Nc5 {[%emt 0:00:00]} Nxc5 {[%emt 0:00:12]} 19. dxc5 {[%emt 0:00:00]}
Rac8 {[%emt 0:00:01]} 20. Qc2 {[%emt 0:00:00]} Nf6 {[%emt 0:00:09]} 21. Nd4 {
[%emt 0:00:00]} Be4 {[%emt 0:00:03]} 22. Qb3 {[%emt 0:00:00]} Bxb1 {[%emt 0:00:
03]} 23. Rxb1 {[%emt 0:00:00]} Rxc5 {[%emt 0:00:01]} 24. Qa3 {[%emt 0:00:00]}
Rd5 {[%emt 0:00:21]} 25. Qxe7 {[%emt 0:00:00]} Rxe7 {[%emt 0:00:01]} 26. Nc6 {
[%emt 0:00:00]} Red7 {[%emt 0:00:06]} 27. Rdc1 {[%emt 0:00:00]} Kh7 {[%emt 0:
00:05]} 28. Nb8 {[%emt 0:00:00]} R7d6 {[%emt 0:00:04]} 29. h3 {[%emt 0:00:00]}
Ne4 {[%emt 0:00:02]} 30. Rc7 {[%emt 0:00:00]} Rf5 {[%emt 0:00:04]} 31. f3 {
[%emt 0:00:00]} Nd2 {[%emt 0:00:04]} 32. Rbc1 {[%emt 0:00:00]} Nc4 {[%emt 0:00:
01]} 33. b3 {[%emt 0:00:00]} Ne3 {[%emt 0:00:02]} 34. Ra7 {[%emt 0:00:00]} Rd2
{[%emt 0:00:01]} 35. g4 {[%emt 0:00:00]} Rg2+ {[%emt 0:00:02]} 36. Kh1 {
[%emt 0:00:00]} Rxf3 {[%emt 0:00:02]} 0-1

[Event "FIDE Women World Blitz 2021"]
[Site "Warsaw"]
[Date "2021.12.30"]
[Round "11.6"]
[White "Shuvalova, Polina"]
[Black "Buksa, Nataliya"]
[Result "0-1"]
[ECO "D03"]
[WhiteElo "2515"]
[BlackElo "2199"]
[Annotator "ChessBase"]
[PlyCount "84"]
[EventDate "2021.12.29"]
[EventType "swiss"]
[EventCountry "POL"]
[Tiebreak "Cut1 Buchholz"]
[SourceTitle "playchess.com"]
[Source "ChessBase"]
[SourceQuality "1"]
[TimeControl "180+2"]

1. d4 {[%emt 0:00:01]} d5 {[%emt 0:00:01]} 2. Nf3 {[%emt 0:00:01]} Nf6 {
[%emt 0:00:01]} 3. Bf4 {[%emt 0:00:02]} e6 {[%emt 0:00:01]} 4. e3 {[%emt 0:00:
01]} Bd6 {[%emt 0:00:01]} 5. Nbd2 {[%emt 0:00:01]} c5 {[%emt 0:00:01]} 6. c3 {
[%emt 0:00:04]} O-O {[%emt 0:00:03]} 7. Bd3 {[%emt 0:00:17]} Qc7 {[%emt 0:00:
01]} 8. Bxd6 {[%emt 0:00:02]} Qxd6 {[%emt 0:00:02]} 9. O-O {[%emt 0:00:02]} Nc6
{[%emt 0:00:02]} 10. Qe2 {[%emt 0:00:04]} e5 {[%emt 0:00:09]} 11. dxc5 {
[%emt 0:00:02]} Qxc5 {[%emt 0:00:04]} 12. e4 {[%emt 0:00:01]} Bg4 {[%emt 0:00:
24]} 13. h3 {[%emt 0:00:01]} Bh5 {[%emt 0:00:01]} 14. Rfe1 {[%emt 0:00:02]}
dxe4 {[%emt 0:00:07]} 15. Nxe4 {[%emt 0:00:04]} Nxe4 {[%emt 0:00:03]} 16. Bxe4
{[%emt 0:00:11]} Rae8 {[%emt 0:00:28]} 17. Qe3 {[%emt 0:00:38]} Qxe3 {[%emt 0:
00:17]} 18. Rxe3 {[%emt 0:00:01]} f6 {[%emt 0:00:07]} 19. c4 {[%emt 0:00:11]}
Bf7 {[%emt 0:00:03]} 20. b3 {[%emt 0:00:10]} Rd8 {[%emt 0:00:02]} 21. Ree1 {
[%emt 0:00:05]} Rd7 {[%emt 0:00:05]} 22. Rad1 {[%emt 0:00:03]} Rfd8 {[%emt 0:
00:01]} 23. Rxd7 {[%emt 0:00:03]} Rxd7 {[%emt 0:00:01]} 24. Bxc6 {[%emt 0:00:
18]} bxc6 {[%emt 0:00:01]} 25. g4 {[%emt 0:00:05]} h5 {[%emt 0:00:12]} 26. Kg2
{[%emt 0:00:02]} hxg4 {[%emt 0:00:11]} 27. hxg4 {[%emt 0:00:01]} Be6 {[%emt 0:
00:03]} 28. g5 {[%emt 0:00:06]} Kf7 {[%emt 0:00:02]} 29. gxf6 {[%emt 0:00:10]}
gxf6 {[%emt 0:00:01]} 30. Kg3 {[%emt 0:00:06]} Bf5 {[%emt 0:00:04]} 31. Re2 {
[%emt 0:00:17]} Rd3 {[%emt 0:00:05]} 32. Rd2 {[%emt 0:00:07]} Rc3 {[%emt 0:00:
01]} 33. Rd8 {[%emt 0:00:35]} Be4 {[%emt 0:00:04]} 34. Rd7+ {[%emt 0:00:03]}
Ke6 {[%emt 0:00:01]} 35. Rxa7 {[%emt 0:00:00]} Rxf3+ {[%emt 0:00:01]} 36. Kg4 {
[%emt 0:00:01]} Rxf2 {[%emt 0:00:03]} 37. a4 {[%emt 0:00:05]} Rg2+ {[%emt 0:00:
05]} 38. Kh4 {[%emt 0:00:01]} Bf5 {[%emt 0:00:12]} 39. a5 {[%emt 0:00:02]} Rg4+
{[%emt 0:00:02]} 40. Kh5 {[%emt 0:00:01]} Rg3 {[%emt 0:00:02]} 41. Kh6 {
[%emt 0:00:01]} Rh3+ {[%emt 0:00:01]} 42. Kg7 {[%emt 0:00:02]} Rh6 {[%emt 0:00:
02]} 0-1

[Event "FIDE Women World Blitz 2021"]
[Site "Warsaw"]
[Date "2021.12.30"]
[Round "11.6"]
[White "Ovod, Evgenija"]
[Black "Parol, Pola"]
[Result "1-0"]
[ECO "B22"]
[WhiteElo "2366"]
[BlackElo "1823"]
[Annotator "NA"]
[PlyCount "35"]
[EventDate "2021.12.29"]
[EventType "swiss"]
[EventCountry "POL"]
[Tiebreak "Cut1 Buchholz"]
[SourceTitle "playchess.com"]
[Source "ChessBase"]
[SourceQuality "1"]
[TimeControl "180+2"]

1. e4 {[%emt 0:00:02]} c5 {[%emt 0:00:02]} 2. c3 {[%emt 0:00:02]} d5 {[%emt 0:
00:01]} 3. exd5 {[%emt 0:00:01]} Qxd5 {[%emt 0:00:01]} 4. d4 {[%emt 0:00:01]}
Nc6 {[%emt 0:00:00]} 5. Nf3 {[%emt 0:00:01]} Bf5 {[%emt 0:00:01]} 6. Be2 {
[%emt 0:00:03]} cxd4 {[%emt 0:00:04]} 7. cxd4 {[%emt 0:00:03]} Bxb1 {[%emt 0:
00:01]} 8. Rxb1 {[%emt 0:00:02]} Qxa2 {[%emt 0:00:01]} 9. O-O {[%emt 0:00:19]}
Qxb1 {[%emt 0:00:40]} 10. d5 {[%emt 0:00:05]} O-O-O {[%emt 0:01:15]} 11. Qb3 {
[%emt 0:00:01]} Qg6 {[%emt 0:00:36]} 12. dxc6 {[%emt 0:00:06]} Qxc6 {[%emt 0:
00:07]} 13. Bf4 {[%emt 0:00:36]} Rd5 {[%emt 0:00:07]} 14. Ne5 {[%emt 0:00:22]}
Qe6 {[%emt 0:00:27]} 15. Bg4 {[%emt 0:00:26]} f5 {[%emt 0:00:01]} 16. Rc1+ {
[%emt 0:00:12]} Kd8 {[%emt 0:00:03]} 17. Bxf5 {[%emt 0:00:10]} Qd6 {[%emt 0:00:
06]} 18. Rc8# {[%emt 0:00:04]} 1-0